[Event "Paracin Open 2022"]
[Site "Paracin"]
[Date "2022.07.08"]
[Round "1.7"]
[White "Pranav Vijay"]
[Black "Gokcek, Kursat Bugra"]
[Result "1-0"]
[ECO "B47"]
[WhiteElo "2265"]
[BlackElo "2185"]
[Annotator "ChessBase"]
[PlyCount "155"]
[EventDate "2022.07.08"]
[EventCountry "SRB"]
[SourceTitle "playchess.com"]
[Source "ChessBase"]
[SourceQuality "1"]
[TimeControl "5400+30"]

1. e4 {[%emt 0:08:42]} c5 {[%emt 0:00:08]} 2. Nf3 {[%emt 0:00:27]} e6 {[%emt 0:00:08]} 3. d4 {[%emt 0:00:15]} cxd4 {[%emt 0:00:05]} 4. Nxd4 {[%emt 0:00:06]} Nc6 {[%emt 0:00:04]} 5. Nc3 {[%emt 0:00:11]} Qc7 {[%emt 0:00:05]} 6. g3 {[%emt 0:00:34]} a6 {[%emt 0:00:11]} 7. Bg2 {[%emt 0:00:10]} Nf6 {[%emt 0:00:17]} 8. O-O {[%emt 0:00:18]} Nxd4 {[%emt 0:00:08]} 9. Qxd4 {[%emt 0:00:14]} Bc5 {[%emt 0:00:05]} 10. Bf4 {[%emt 0:01:51]} d6 {[%emt 0:00:08]} 11. Qd2 {[%emt 0:00:42]} h6 {[%emt 0:00:07]} 12. h3 {[%emt 0:06:12]} e5 {[%emt 0:05:47]} 13. Be3 {[%emt 0:00:08]} Bxe3 {[%emt 0:02:10]} 14. Qxe3 {[%emt 0:00:15]} Be6 {[%emt 0:00:26]} 15. f4 {[%emt 0:03:37]} b5 {[%emt 0:08:14]} 16. a3 {[%emt 0:01:52]} Qa7 {[%emt 0:05:23]} 17. Kf2 {[%emt 0:06:43]} Ke7 {[%emt 0:07:53]} 18. Rad1 {[%emt 0:05:43]} Rhc8 {[%emt 0:06:27]} 19. Rd2 {[%emt 0:03:34]} Qxe3+ {[%emt 0:01:02]} 20. Kxe3 {[%emt 0:00:07]} Rab8 {[%emt 0:04:13]} 21. Ra1 {[%emt 0:04:51]} g5 {[%emt 0:08:14]} 22. f5 {[%emt 0:06:39]} Bd7 {[%emt 0:01:02]} 23. Na2 {[%emt 0:01:46]} a5 {[%emt 0:02:54]} 24. Nc1 {[%emt 0:04:27]} Rc4 {[%emt 0:11:17]} 25. Nd3 {[%emt 0:00:16]} Bc6 {[%emt 0:09:18]} 26. Nf2 {[%emt 0:00:16]} Ba8 {[%emt 0:01:02]} 27. c3 {[%emt 0:02:39]} Rc6 {[%emt 0:03:55]} 28. Bf3 {[%emt 0:06:32]} Nd7 {[%emt 0:01:10]} 29. Be2 {[%emt 0:01:37]} Nc5 {[%emt 0:01:45]} 30. Rad1 {[%emt 0:07:53]} f6 {[%emt 0:01:46]} 31. Rh1 {[%emt 0:01:13]} b4 {[%emt 0:01:34]} 32. axb4 {[%emt 0:00:09]} axb4 {[%emt 0:00:03]} 33. c4 {[%emt 0:00:07]} Nb3 {[%emt 0:02:44]} 34. Rd3 {[%emt 0:00:18]} Nd4 {[%emt 0:00:36]} 35. Rxd4 {[%emt 0:00:10]} exd4+ {[%emt 0:00:03]} 36. Kxd4 {[%emt 0:00:02]} Rcc8 {[%emt 0:07:44]} 37. h4 {[%emt 0:03:19]} Rh8 {[%emt 0:00:07]} 38. Ra1 {[%emt 0:00:39]} Bc6 {[%emt 0:01:22]} 39. Ra7+ {[%emt 0:00:28]} Bd7 {[%emt 0:01:10]} 40. Nd3 {[%emt 0:01:34]} Rhc8 {[%emt 0:02:39]} 41. Bd1 {[%emt 0:00:52]} Kd8 {[%emt 0:03:18]} 42. Bb3 {[%emt 0:00:30]} Rc7 {[%emt 0:02:42]} 43. Ra1 {[%emt 0:00:01]} Bc6 {[%emt 0:00:23]} 44. hxg5 {[%emt 0:00:33]} Re7 {[%emt 0:00:58]} 45. Nf2 {[%emt 0:00:20]} hxg5 {[%emt 0:00:04]} 46. Rh1 {[%emt 0:00:08]} Kd7 {[%emt 0:00:45]} 47. Rh6 {[%emt 0:00:27]} Rf8 {[%emt 0:00:26]} 48. Bd1 {[%emt 0:02:38]} Kd8 {[%emt 0:01:40]} 49. Bf3 {[%emt 0:00:37]} Ra7 {[%emt 0:00:20]} 50. Nd3 {[%emt 0:00:28]} Rb7 {[%emt 0:00:39]} 51. Rh1 {[%emt 0:01:03]} Rff7 {[%emt 0:00:23]} 52. Rh8+ {[%emt 0:00:26]} Be8 {[%emt 0:00:53]} 53. Bh5 {[%emt 0:00:29]} Rfe7 {[%emt 0:00:03]} 54. Rf8 {[%emt 0:00:07]} Rb8 {[%emt 0:00:58]} 55. Bxe8 {[%emt 0:00:13]} Kc7 {[%emt 0:00:14]} 56. g4 {[%emt 0:03:59]} Rbxe8 {[%emt 0:00:09]} 57. Rxe8 {[%emt 0:00:04]} Rxe8 {[%emt 0:00:03]} 58. Nxb4 {[%emt 0:00:05]} Rf8 {[%emt 0:01:23]} 59. Nd5+ {[%emt 0:00:04]} Kc6 {[%emt 0:00:20]} 60. b4 {[%emt 0:00:03]} Rf7 {[%emt 0:00:25]} 61. b5+ {[%emt 0:00:04]} Kd7 {[%emt 0:00:32]} 62. Kc3 {[%emt 0:00:29]} Rf8 {[%emt 0:00:16]} 63. Kb4 {[%emt 0:00:04]} Rf7 {[%emt 0:00:11]} 64. c5 {[%emt 0:01:16]} dxc5+ {[%emt 0:00:04]} 65. Kxc5 {[%emt 0:00:03]} Rf8 {[%emt 0:01:47]} 66. b6 {[%emt 0:00:07]} Rc8+ {[%emt 0:00:34]} 67. Kb5 {[%emt 0:00:07]} Rc1 {[%emt 0:00:07]} 68. Nxf6+ {[%emt 0:00:56]} Kd6 {[%emt 0:00:01]} 69. Nd5 {[%emt 0:00:10]} Rc5+ {[%emt 0:00:39]} 70. Ka6 {[%emt 0:00:49]} Rc1 {[%emt 0:00:07]} 71. f6 {[%emt 0:00:49]} Rb1 {[%emt 0:00:58]} 72. f7 {[%emt 0:00:49]} Rf1 {[%emt 0:00:33]} 73. b7 {[%emt 0:00:22]} Kc6 {[%emt 0:00:06]} 74. Nb4+ {[%emt 0:00:31]} Kc7 {[%emt 0:00:03]} 75. Ka7 {[%emt 0:00:05]} Rxf7 {[%emt 0:00:41]} 76. b8=Q+ {[%emt 0:00:09]} Kd7 {[%emt 0:00:02]} 77. Kb6 {[%emt 0:00:14]} Ke6 {[%emt 0:00:29]} 78. Nd5 {[%emt 0:00:18]} 1-0

[Event "Paracin Open 2022"]
[Site "Paracin"]
[Date "2022.07.08"]
[Round "1.8"]
[White "Lever, Erwan"]
[Black "Gundavaa, Bayarsaikhan"]
[Result "0-1"]
[ECO "E92"]
[WhiteElo "2178"]
[BlackElo "2503"]
[Annotator "TA"]
[PlyCount "56"]
[EventDate "2022.07.08"]
[EventCountry "SRB"]
[SourceTitle "playchess.com"]
[Source "ChessBase"]
[SourceQuality "1"]
[TimeControl "5400+30"]

{[%evp 18,55,58,50,79,42,52,46,45,49,37,56,93,-57,-54,-60,-28,-56,-24,-87,-67,-54,-27,-194,-189,-218,-247,-239,-252,-441,-275,-438,-444,-748,-719,-821,-781,-1170,-1131,-29999]} 1. d4 {[%emt 0:00:18]} Nf6 {[%emt 0:02:57]} 2. c4 {[%emt 0:00:52]} g6 {[%emt 0:00:50]} 3. Nc3 {[%emt 0:00:04]} Bg7 {[%emt 0:00:08]} 4. e4 {[%emt 0:00:05]} d6 {[%emt 0:00:07]} 5. Be2 {[%emt 0:00:04]} O-O {[%emt 0:00:09]} 6. Nf3 {[%emt 0:00:03]} Na6 {[%emt 0:00:27]} 7. Be3 {[%emt 0:01:03]} e5 {[%emt 0:03:07]} 8. d5 {[%emt 0:06:48]} Ng4 {[%emt 0:06:47]} 9. Bg5 {[%emt 0:01:31]} f6 {[%emt 0:04:17]} 10. Bh4 {[%emt 0:00:05]} Qe8 {[%emt 0:05:44] E92: King's Indian: Classical: 6 Be2 e5: 7 dxe5, 7 Be3 and Petrosian System without 7...Nbd7.} 11. h3 {[%emt 0:08:29]} Nh6 {[%emt 0:00:33]} 12. g4 {[%emt 0:02:02]} Nf7 {[%emt 0:03:59] [#] White is slightly better.} 13. Nd2 $146 {[%emt 0:01:49]} ({Predecessor:} 13. Rg1 Bd7 14. Nd2 Qe7 15. Qc2 c6 16. a3 Rac8 17. dxc6 bxc6 18. b4 Nc7 19. O-O-O {1-0 (61) Budrewicz,K (2289)-Popadic,D (2157) Chess.com INT 2020}) 13... Bh6 {[%emt 0:04:33]} 14. a3 {[%emt 0:06:57]} c5 {[%emt 0:16:38]} 15. dxc6 {[%emt 0:09:06]} (15. Bxf6 $16 {Hoping for h4.} Ng5 16. Bxg5 Bxg5 17. Nf3) 15... bxc6 $15 {[%emt 0:00:57]} 16. Bxf6 {[%emt 0:01:56]} Bg5 {[%emt 0:04:16]} 17. Bxg5 {[%emt 0:01:20]} Nxg5 {[%emt 0:00:02]} 18. b4 {[%emt 0:07:07]} (18. f3 $11 {keeps the balance.}) 18... Qf7 {[%emt 0:06:33][%csl Gf8][%cal Rf7f2][%mdl 1024] Black has strong compensation. Black is more active.} 19. f3 {[%emt 0:00:13]} Qf4 {[%emt 0:01:54]} 20. Nf1 {[%emt 0:02:28] Prevents Qg3+. White does not recover from this.} (20. Qa4 $11 {and White has nothing to worry.} Qe3 21. Nd1) 20... Nc7 $1 $19 {[%emt 0:08:31][%cal Ba6c7,Bc7e6,Be6d4][%mdl 32]} ({Stronger than} 20... Nxf3+ 21. Bxf3 Qxf3 22. Qxf3 Rxf3 23. Rc1 $11) 21. Kf2 {[%emt 0:14:57] [#]} Nce6 $1 {[%emt 0:06:25]} 22. Qd2 {[%emt 0:04:23]} ({Don't go for} 22. h4 $2 {[#]} Nxf3 $1 {[%mdl 512]} 23. Bxf3 Nd4 $19) 22... Qf6 {[%emt 0:04:12]} 23. Nh2 {[%emt 0:04:27]} (23. Qe3) 23... Nd4 {[%emt 0:03:04]} 24. Raf1 {[%emt 0:00:46]} (24. Kg3 {is a better defense.}) 24... Nxh3+ {[%emt 0:01:24]} 25. Kg3 {[%emt 0:00:49]} (25. Ke1 $142) 25... Nf4 {[%emt 0:00:50]} 26. Bd1 {[%emt 0:01:56]} Qg5 {[%emt 0:02:19] Threatens to win with ...Nh5+.} 27. Rf2 {[%emt 0:00:06]} Qh6 {[%emt 0:01:23][%csl Gf4][%cal Rh6h3]} 28. a4 {[%emt 0:00:49]} Qh3# {[%emt 0:00:08] Weighted Error Value: White=1.21/Black=0.16 (very precise)} 0-1

[Event "Paracin Open 2022"]
[Site "Paracin"]
[Date "2022.07.08"]
[Round "1.9"]
[White "Arjun Kalyan"]
[Black "Granovskiy, Alexandr"]
[Result "1-0"]
[ECO "B45"]
[WhiteElo "2499"]
[BlackElo "2177"]
[Annotator "TA"]
[PlyCount "135"]
[EventDate "2022.07.08"]
[EventCountry "SRB"]
[SourceTitle "playchess.com"]
[Source "ChessBase"]
[SourceQuality "1"]
[TimeControl "5400+30"]

{[%evp 22,135,42,33,29,32,24,29,28,23,59,22,43,14,55,0,79,75,90,83,145,148,139,98,98,105,144,138,152,99,83,94,63,39,60,45,43,52,22,31,51,51,47,50,51,38,72,57,54,4,77,72,68,62,85,42,77,28,49,0,0,0,0,0,0,0,0,0,0,0,18,18,18,18,18,18,18,18,65,25,78,56,65,49,64,50,64,11,65,65,733,718,869,869,1531,1525,1909,1757,1555,415,1527,1527,1224,1110,1334,1198,1144,0,1455,1215,10083,6408,29976,29973,29974,29973]} 1. e4 {[%emt 0:00:02]} c5 {[%emt 0:00:06]} 2. Nf3 {[%emt 0:00:05]} e6 {[%emt 0:00:05]} 3. d4 {[%emt 0:00:06]} cxd4 {[%emt 0:00:06]} 4. Nxd4 {[%emt 0:00:04]} Nf6 {[%emt 0:00:07]} 5. Nc3 {[%emt 0:00:08]} Nc6 {[%emt 0:00:06]} 6. Nxc6 {[%emt 0:00:23]} bxc6 {[%emt 0:00:09]} 7. e5 {[%emt 0:00:24]} Nd5 {[%emt 0:00:09]} 8. Ne4 {[%emt 0:00:06]} Qc7 {[%emt 0:00:10]} 9. f4 {[%emt 0:00:10]} Qb6 {[%emt 0:00:07]} 10. c4 {[%emt 0:00:37]} Bb4+ {[%emt 0:01:00]} 11. Ke2 {[%emt 0:00:16]} f5 {[%emt 0:00:58]} 12. exf6 {[%emt 0:00:12]} Nxf6 {[%emt 0:00:20] B45: Sicilian Four Knights.} 13. Be3 {[%emt 0:00:10] Chess con chili.} Qd8 {[%emt 0:15:57]} 14. Nd6+ {[%emt 0:00:13]} Bxd6 {[%emt 0:00:04] White has an edge.} 15. Qxd6 {[%emt 0:00:05]} c5 {[%emt 0:04:25]} 16. Qxc5 {[%emt 0:01:43]} Bb7 {[%emt 0:00:07]} 17. Kd1 $36 {[%emt 0:02:41][%mdl 2048] White is pushing.} Kf7 {[%emt 0:05:33] [#]} 18. Bd3 $146 {[%emt 0:02:20]} ({Better is} 18. Qd4 $14) ({Predecessor:} 18. Rg1 Be4 19. Be2 Qb8 20. Qd4 Rd8 21. Ke1 d5 22. c5 a5 23. Kf2 Re8 24. Rgc1 g5 25. fxg5 e5 26. Qd1 Rg8 27. g3 Ne8 28. b3 Qc8 29. Kg1 {½-½ (29) Heinemann,J (2304)-Cramling Bellon,A (2025) Caleta 2019}) 18... d6 {[%emt 0:07:48]} (18... d5 $1 $11 19. Ke2 dxc4 20. Qxc4 Rc8) 19. Qg5 $16 {[%emt 0:04:37]} d5 {[%emt 0:00:57] White must now prevent ...dxc4.} 20. Ke2 {[%emt 0:02:34] 0x0.001765430cb4dp-1022s more active pieces.} d4 {[%emt 0:02:34] [#]} (20... dxc4 $142 21. Bxc4 Rc8) 21. Bf2 $1 {[%emt 0:19:41] This bishop pair is nice.} Qb6 {[%emt 0:10:14]} 22. Qb5 {[%emt 0:07:26]} Qxb5 {[%emt 0:03:18]} 23. cxb5 {[%emt 0:00:01]} Bxg2 {[%emt 0:00:13]} 24. Rhg1 {[%emt 0:02:03]} Nd5 {[%emt 0:05:28]} 25. Rxg2 {[%emt 0:03:20]} (25. Bxd4 $142 {Threatens to win with Be5.} Nxf4+ 26. Ke3) 25... Nxf4+ {[%emt 0:00:03]} 26. Kf3 {[%emt 0:00:09]} Nxd3 {[%emt 0:02:12]} 27. Bxd4 {[%emt 0:00:05]} e5 {[%emt 0:00:25]} 28. Ke4 {[%emt 0:27:21] Strongly threatening Rf1+.} Rhd8 $1 {[%emt 0:01:51]} 29. Bxe5 {[%emt 0:02:13]} Nxe5 {[%emt 0:00:18]} 30. Kxe5 $14 {[%emt 0:00:01][%mdl 4096] Endgame KRR-KRR} Rd3 {[%emt 0:00:42]} 31. Rc1 {[%emt 0:04:02]} Re8+ {[%emt 0:04:17]} 32. Kf4 {[%emt 0:00:55]} Rd4+ {[%emt 0:22:33]} 33. Kg3 {[%emt 0:02:05]} Re3+ {[%emt 0:01:58]} 34. Kf2 {[%emt 0:00:05]} Re7 {[%emt 0:00:05]} 35. Kg1 {[%emt 0:04:38]} (35. a3 $14) 35... g6 {[%emt 0:00:08]} (35... Rb4 $11 {remains equal.}) 36. Rf2+ {[%emt 0:03:39]} Kg7 {[%emt 0:00:33]} 37. Rc5 {[%emt 0:00:45]} Kh6 {[%emt 0:03:00]} 38. a3 {[%emt 0:00:30] Prevents Rb4.} Red7 {[%emt 0:01:28]} 39. Re5 {[%emt 0:03:31]} (39. Rfc2 $16) 39... Rd3 $11 {[%emt 0:00:51]} 40. Kg2 {[%emt 0:00:35]} (40. Rfe2 $14 {is superior.}) 40... Rb3 $1 {[%emt 0:00:58]} 41. Rfe2 {[%emt 0:00:11]} Rf7 {[%emt 0:02:53]} 42. Kg1 {[%emt 0:02:05]} Rf4 {[%emt 0:03:13]} 43. Re7 {[%emt 0:07:50]} Ra4 {[%emt 0:00:12]} 44. Rb7 {[%emt 0:00:53]} Ra5 {[%emt 0:00:13]} 45. Ree7 {[%emt 0:00:14][%csl LRa7,LRh7]} Raxb5 {[%emt 0:00:43]} 46. Rxh7+ {[%emt 0:00:21]} Kg5 {[%emt 0:00:02]} 47. Rxb5+ {[%emt 0:00:49]} Rxb5 {[%emt 0:05:21] KR-KR} 48. b4 {[%emt 0:00:27]} a5 {[%emt 0:00:00]} 49. Rh3 {[%emt 0:00:10]} Kf4 {[%emt 0:00:00]} ({Resist} 49... axb4 50. Rb3 $14) (49... Rd5 $11) 50. Kg2 {[%emt 0:01:24]} Ke4 {[%emt 0:00:00]} (50... axb4 $11 {keeps the balance.} 51. Rh4+ Kf5 52. Rxb4 Rd5) 51. Rg3 {[%emt 0:00:26]} Kf4 {[%emt 0:00:19]} 52. h3 {[%emt 0:00:26]} ({Reject} 52. Rxg6 axb4 53. axb4 Rxb4 $11) 52... Rd5 {[%emt 0:00:38] ( -> ...Rd2+)} 53. Rf3+ {[%emt 0:00:56]} Ke4 {[%emt 0:00:33]} 54. Kg3 {[%emt 0:00:28]} (54. bxa5 $1 $14 Rxa5 55. Kg3) 54... Rg5+ {[%emt 0:00:30]} (54... a4 $1 $11) 55. Kh4 $14 {[%emt 0:00:22]} Rg1 {[%emt 0:00:56][%mdl 8192] [#]} (55... Rb5 $14 56. Kg4 Rf5) 56. Rg3 $1 $18 {[%emt 0:00:08]} Rb1 {[%emt 0:00:38]} 57. Rxg6 {[%emt 0:00:12]} axb4 {[%emt 0:00:23]} 58. axb4 {[%emt 0:00:11][%cal Ba3b4,Bb4b5,Bb5b6][%mdl 32]} Kf5 {[%emt 0:00:39]} 59. Rg5+ {[%emt 0:00:08]} Kf6 {[%emt 0:00:38]} 60. Rg4 {[%emt 0:00:01]} (60. b5 $142 {Kh5 is the strong threat.} Rb3 61. Kg4) 60... Kf5 {[%emt 0:00:37]} (60... Rb3 $142 61. Re4 Kf5) 61. Kh5 {[%emt 0:00:18]} Rd1 {[%emt 0:00:31]} 62. b5 {[%emt 0:00:33] White threatens Rb4 and mate.} Rd8 {[%emt 0:00:12]} 63. Rg5+ {[%emt 0:00:03]} Kf4 {[%emt 0:00:29]} 64. Rg4+ {[%emt 0:00:05]} Kf5 $1 {[%emt 0:00:03][%cal Rd8h8]} 65. Kh4 {[%emt 0:00:15] aiming for b6.} Ke5 {[%emt 0:00:51]} 66. b6 {[%emt 0:00:26] White wants to mate with b7.} Kd5 {[%emt 0:00:38]} 67. Rb4 {[%emt 0:00:48]} Kc5 {[%emt 0:00:21]} 68. Rb3 {[%emt 0:00:06] Weighted Error Value: White=0.34/Black=0.20 (precise)} 1-0

[Event "Paracin Open 2022"]
[Site "Paracin"]
[Date "2022.07.08"]
[Round "1.10"]
[White "Citak, Selim"]
[Black "Song, Raymond"]
[Result "1/2-1/2"]
[ECO "E36"]
[WhiteElo "2176"]
[BlackElo "2499"]
[Annotator "RC"]
[PlyCount "98"]
[EventDate "2022.07.08"]
[EventCountry "SRB"]
[SourceTitle "playchess.com"]
[Source "ChessBase"]
[SourceQuality "1"]
[TimeControl "5400+30"]

1. d4 {[%emt 0:00:10]} Nf6 {[%emt 0:00:09]} 2. c4 {[%emt 0:00:07]} e6 {[%emt 0:00:05]} 3. Nc3 {[%emt 0:00:15]} Bb4 {[%emt 0:00:08]} 4. Qc2 {[%emt 0:00:50]} O-O {[%emt 0:00:10]} 5. a3 {[%emt 0:00:10]} Bxc3+ {[%emt 0:00:05]} 6. Qxc3 {[%emt 0:00:07]} d5 {[%emt 0:00:07]} 7. Bg5 {[%emt 0:00:50]} c5 {[%emt 0:00:16]} 8. dxc5 {[%emt 0:00:28]} d4 {[%emt 0:00:10]} 9. Qc2 {[%emt 0:00:29]} e5 {[%emt 0:01:57]} 10. e3 {[%emt 0:05:37]} h6 {[%emt 0:04:41]} 11. Bh4 {[%emt 0:02:47]} Nbd7 {[%emt 0:00:25]} 12. exd4 {[%emt 0:05:00]} exd4 {[%emt 0:02:03]} 13. O-O-O {[%emt 0:06:59]} Nxc5 {[%emt 0:03:54]} 14. Nf3 {[%emt 0:01:08]} Qb6 {[%emt 0:07:58]} 15. b4 {[%emt 0:09:08]} d3 {[%emt 0:21:23]} 16. Bxd3 {[%emt 0:07:33]} Nxd3+ {[%emt 0:00:04]} 17. Qxd3 {[%emt 0:00:18]} a5 {[%emt 0:00:03]} 18. Qd4 {[%emt 0:04:27]} Qxd4 {[%emt 0:01:57]} 19. Nxd4 {[%emt 0:00:33]} axb4 {[%emt 0:00:03]} 20. Bxf6 {[%emt 0:08:52]} gxf6 {[%emt 0:01:20]} 21. axb4 {[%emt 0:00:06]} Ra2 {[%emt 0:06:19]} 22. Rhe1 {[%emt 0:02:55]} Rxf2 {[%emt 0:02:03]} 23. Re2 {[%emt 0:00:38]} Rf4 {[%emt 0:08:18]} 24. h3 {[%emt 0:06:58]} f5 {[%emt 0:10:08]} 25. Kb2 {[%emt 0:01:38]} Kg7 {[%emt 0:03:36]} 26. Kc3 {[%emt 0:01:14]} Kf6 {[%emt 0:00:41]} 27. g3 {[%emt 0:06:30]} Re4 {[%emt 0:00:10]} 28. Rf1 {[%emt 0:00:17]} Rxe2 {[%emt 0:06:58]} 29. Nxe2 {[%emt 0:00:02]} Re8 {[%emt 0:03:15]} 30. Kd3 {[%emt 0:01:40]} Be6 {[%emt 0:01:31]} 31. Rf4 {[%emt 0:12:05]} Ra8 {[%emt 0:01:26]} 32. Nc3 {[%emt 0:00:16]} Ke5 {[%emt 0:01:43]} 33. Rh4 {[%emt 0:01:52]} Rd8+ {[%emt 0:02:21]} 34. Ke3 {[%emt 0:01:11]} Rg8 {[%emt 0:00:41]} 35. Ne2 {[%emt 0:00:53]} Ra8 {[%emt 0:01:10]} 36. c5 {[%emt 0:02:14]} Ra3+ {[%emt 0:00:22]} 37. Kf2 {[%emt 0:00:17]} Ra2 {[%emt 0:01:19]} 38. Ke3 {[%emt 0:00:30]} Ra3+ {[%emt 0:00:58]} 39. Kf2 {[%emt 0:00:02]} Rb3 {[%emt 0:00:29]} 40. Nd4 {[%emt 0:02:40]} Rb2+ {[%emt 0:00:26]} 41. Ke3 {[%emt 0:00:02]} Kd5 {[%emt 0:04:07]} 42. Nb5 {[%emt 0:01:04]} Rb3+ {[%emt 0:00:18]} 43. Kf2 {[%emt 0:00:10]} Rb2+ {[%emt 0:01:37]} 44. Ke3 {[%emt 0:00:56]} Rb3+ {[%emt 0:00:01]} 45. Kf2 {[%emt 0:00:27]} Bd7 {[%emt 0:01:06]} 46. Nd6 {[%emt 0:04:25]} Rb2+ {[%emt 0:01:24]} 47. Ke3 {[%emt 0:00:04]} Rb3+ {[%emt 0:00:03]} 48. Kf2 {[%emt 0:02:23]} Rb2+ {[%emt 0:00:09]} 49. Ke3 {[%emt 0:00:08]} Rb3+ {[%emt 0:00:03]} 1/2-1/2

[Event "Paracin Open 2022"]
[Site "Paracin"]
[Date "2022.07.08"]
[Round "1.11"]
[White "Makhnev, Denis"]
[Black "Andreev, Konstantin"]
[Result "1-0"]
[ECO "D27"]
[WhiteElo "2492"]
[BlackElo "2238"]
[Annotator "TA"]
[PlyCount "97"]
[EventDate "2022.07.08"]
[EventCountry "SRB"]
[SourceTitle "playchess.com"]
[Source "ChessBase"]
[SourceQuality "1"]
[TimeControl "5400+30"]

{[%evp 15,97,8,6,6,6,8,10,10,6,20,22,24,23,20,20,14,43,22,52,51,72,71,145,145,149,150,150,150,150,150,150,150,150,150,150,150,150,150,150,150,150,150,150,150,150,150,179,150,158,158,158,139,158,158,158,130,150,130,150,130,283,274,267,228,562,543,499,462,562,535,470,470,589,337,482,408,5620,3854,5616,5177,29982,29983,29987,29987]} 1. d4 {[%emt 0:00:04]} Nf6 {[%emt 0:00:05]} 2. c4 {[%emt 0:00:07]} e6 {[%emt 0:00:06]} 3. Nf3 {[%emt 0:00:06]} d5 {[%emt 0:00:03]} 4. Nc3 {[%emt 0:07:40]} dxc4 {[%emt 0:00:11]} 5. e3 {[%emt 0:00:08]} a6 {[%emt 0:00:22]} 6. Bxc4 {[%emt 0:00:07]} b5 {[%emt 0:00:08]} 7. Bb3 {[%emt 0:00:28]} Bb7 {[%emt 0:01:03]} 8. O-O {[%emt 0:00:06]} c5 {[%emt 0:00:33]} 9. e4 {[%emt 0:00:31] is the new trend. D27: Queen's Gambit Accepted: Classical main line: 7 e4!? and 7 a4.} cxd4 {[%emt 0:00:17]} 10. Nxd4 {[%emt 0:00:18]} Nc6 {[%emt 0:00:25]} 11. Be3 {[%emt 0:03:38] The position is equal.} Be7 {[%emt 0:04:51]} 12. Nxc6 {[%emt 0:07:15]} Qxd1 {[%emt 0:05:13]} 13. Rfxd1 {[%emt 0:00:36]} Bxc6 {[%emt 0:00:05]} 14. f3 {[%emt 0:00:08]} O-O {[%emt 0:02:00]} 15. Ne2 {[%emt 0:00:27]} Rfd8 {[%emt 0:06:37] [#]} 16. Nd4 $146 {[%emt 0:04:17]} ({Predecessor:} 16. Rac1 Rxd1+ 17. Bxd1 Rc8 18. Nd4 Bd7 19. Rxc8+ Bxc8 20. a4 bxa4 21. Bxa4 Bd7 22. Nc6 {1-0 (79) Stocek,J (2570)-Ftacnik,L (2521) Slovakia 2020}) 16... Bb7 {[%emt 0:03:01]} 17. Rac1 {[%emt 0:05:47] Strongly threatening Rc7.} Rac8 {[%emt 0:02:47] Prevents Rc7.} 18. Rxc8 {[%emt 0:01:28]} Rxc8 {[%emt 0:04:10] [#]} (18... Bxc8 $142 19. e5 Nd5) 19. Nxe6 $1 $16 {[%emt 0:00:13][%mdl 512]} fxe6 {[%emt 0:00:54]} 20. Bxe6+ {[%emt 0:00:06]} Kf8 {[%emt 0:00:05]} 21. Bxc8 {[%emt 0:00:06] White is more active.} Bxc8 {[%emt 0:00:05]} 22. Rc1 {[%emt 0:02:29]} Be6 {[%emt 0:05:32]} 23. b3 {[%emt 0:00:08]} a5 {[%emt 0:10:54]} 24. Bc5 {[%emt 0:02:48]} Nd7 {[%emt 0:00:45]} 25. Bxe7+ {[%emt 0:01:10]} Kxe7 {[%emt 0:00:02]} 26. Rc7 {[%emt 0:00:18] And now Ra7 would win.} a4 {[%emt 0:07:01]} 27. Rb7 {[%emt 0:01:06]} axb3 {[%emt 0:01:56]} 28. axb3 {[%emt 0:00:05]} Bxb3 {[%emt 0:00:06]} 29. Rxb5 {[%emt 0:00:04]} Be6 {[%emt 0:01:57]} 30. Kf2 {[%emt 0:02:10]} g6 {[%emt 0:01:27]} 31. Ke3 {[%emt 0:01:40]} Kf6 {[%emt 0:02:00]} 32. Kd4 {[%emt 0:01:13]} h5 {[%emt 0:02:09]} 33. Rb7 {[%emt 0:01:52]} Ke7 {[%emt 0:11:32]} 34. f4 {[%emt 0:11:38]} Kf6 {[%emt 0:01:56]} 35. h3 {[%emt 0:00:07]} Ke7 {[%emt 0:00:57]} 36. Ke3 {[%emt 0:00:04]} Kf6 {[%emt 0:01:01]} 37. Kf3 {[%emt 0:00:06]} Ke7 $2 {[%emt 0:08:20] [#] Loses the game.} (37... h4 $16 {was necessary.} 38. Ke3 Ke7) 38. g4 $1 $18 {[%emt 0:02:30]} hxg4+ {[%emt 0:00:12]} 39. hxg4 {[%emt 0:00:03] Black must now prevent g5.} Kf6 {[%emt 0:01:47]} (39... g5 {is tougher.} 40. fxg5 Kf7) 40. Rb5 {[%emt 0:00:09]} Bc4 {[%emt 0:03:47]} 41. Ra5 {[%emt 0:00:12]} (41. Rb7 Ke7 42. Ra7 g5 43. fxg5 Be6 $18) 41... Be6 {[%emt 0:01:18]} 42. Kg3 {[%emt 0:01:09]} Bc4 {[%emt 0:02:13]} 43. Ra7 {[%emt 0:00:58]} Nc5 {[%emt 0:01:37]} 44. Kf3 {[%emt 0:03:03]} Bd3 {[%emt 0:06:41]} (44... Bf7 {keeps fighting.} 45. Ke3 Be8) 45. Ke3 {[%emt 0:01:35] g5+ is the strong threat.} Bxe4 {[%emt 0:02:53] [#]} (45... Ke6 $142 46. Ra5 Nxe4 47. Re5+ Kf6 48. Rxe4 Bc2) 46. g5+ $1 {[%emt 0:00:04]} ({Weaker is} 46. Ra5 Nb7 47. Ra6+ Kf7 $14) 46... Ke6 {[%emt 0:00:41]} 47. Ra5 {[%emt 0:00:08][%mdl 64] Deflection} Nd7 {[%emt 0:01:44]} 48. Kxe4 {[%emt 0:00:06]} Kf7 {[%emt 0:00:10]} 49. Ra7 {[%emt 0:00:47] Weighted Error Value: White=0.13 (very precise) /Black=0.53} 1-0